[Event "*** Titled Tuesday Blitz"]
[Site "Chess.com"]
[Date "2020.05.12"]
[Round "2"]
[White "Moon_stone123"]
[Black "AlexTriapishko"]
[Result "0-1"]
[WhiteElo "2513"]
[BlackElo "2772"]
[TimeControl "180+1"]
[EndTime "10:20:11 PDT"]
[Termination "AlexTriapishko won by checkmate"]

1. e4 {[%clk 0:03:00.9]} 1... e5 {[%clk 0:02:56.9]} 2. Nf3 {[%clk 0:03:00.5]}
2... Nc6 {[%clk 0:02:57.4]} 3. Bb5 {[%clk 0:03:00.8]} 3... a6 {[%clk 0:02:57.8]}
4. Ba4 {[%clk 0:03:00.5]} 4... d6 {[%clk 0:02:58.3]} 5. c3 {[%clk 0:02:58.6]}
5... Bd7 {[%clk 0:02:58.5]} 6. O-O {[%clk 0:02:58]} 6... Nf6 {[%clk 0:02:58.8]}
7. d4 {[%clk 0:02:56.3]} 7... g6 {[%clk 0:02:59.3]} 8. Re1 {[%clk 0:02:54.4]}
8... Bg7 {[%clk 0:02:59.6]} 9. Nbd2 {[%clk 0:02:52.2]} 9... O-O {[%clk
0:02:59.3]} 10. Nf1 {[%clk 0:02:52.4]} 10... b5 {[%clk 0:02:45.8]} 11. Bc2
{[%clk 0:02:52.1]} 11... exd4 {[%clk 0:02:45.4]} 12. cxd4 {[%clk 0:02:51.7]}
12... Bg4 {[%clk 0:02:45.8]} 13. Be3 {[%clk 0:02:43.7]} 13... Nd7 {[%clk
0:02:32.9]} 14. h3 {[%clk 0:02:22.8]} 14... Bxf3 {[%clk 0:02:32.8]} 15. gxf3
{[%clk 0:02:23.7]} 15... Qf6 {[%clk 0:02:19.8]} 16. d5 {[%clk 0:01:44.8]} 16...
Nd4 {[%clk 0:02:14.3]} 17. Nh2 {[%clk 0:01:38.6]} 17... Nxc2 {[%clk 0:02:07.6]}
18. Qxc2 {[%clk 0:01:38.2]} 18... Ne5 {[%clk 0:02:08.5]} 19. Qe2 {[%clk
0:01:37]} 19... Nc4 {[%clk 0:01:46.4]} 20. Rab1 {[%clk 0:01:27]} 20... Qh4
{[%clk 0:01:32]} 21. Kg2 {[%clk 0:01:24.5]} 21... f5 {[%clk 0:01:28.3]} 22. b3
{[%clk 0:01:13.7]} 22... Nxe3+ {[%clk 0:01:11.1]} 23. Qxe3 {[%clk 0:01:14.6]}
23... Be5 {[%clk 0:01:08.1]} 24. Re2 {[%clk 0:00:58.5]} 24... Rf7 {[%clk
0:00:54.7]} 25. Rf1 {[%clk 0:00:36]} 25... Raf8 {[%clk 0:00:53.9]} 26. exf5
{[%clk 0:00:20.7]} 26... gxf5 {[%clk 0:00:50.8]} 27. f4 {[%clk 0:00:11.4]} 27...
Bxf4 {[%clk 0:00:49.1]} 28. Qf3 {[%clk 0:00:11.8]} 28... Rg7+ {[%clk 0:00:47.5]}
29. Kh1 {[%clk 0:00:12.3]} 29... Qg5 {[%clk 0:00:43.3]} 30. Ree1 {[%clk
0:00:10.6]} 30... Bxh2 {[%clk 0:00:27.6]} 31. Kxh2 {[%clk 0:00:11.5]} 31... Qf6
{[%clk 0:00:26.8]} 32. Rg1 {[%clk 0:00:11.5]} 32... Rg6 {[%clk 0:00:23.3]} 33.
Rxg6+ {[%clk 0:00:08.3]} 33... hxg6 {[%clk 0:00:24.2]} 34. Re6 {[%clk
0:00:08.6]} 34... Qg5 {[%clk 0:00:21]} 35. Qg3 {[%clk 0:00:09]} 35... Qxg3+
{[%clk 0:00:20.8]} 36. Kxg3 {[%clk 0:00:09.9]} 36... Kf7 {[%clk 0:00:21.7]} 37.
Re3 {[%clk 0:00:08.5]} 37... Rh8 {[%clk 0:00:17.7]} 38. Rc3 {[%clk 0:00:08.1]}
38... Kf6 {[%clk 0:00:17.8]} 39. Rxc7 {[%clk 0:00:07.8]} 39... Ke5 {[%clk
0:00:18.7]} 40. Rc6 {[%clk 0:00:06]} 40... Kxd5 {[%clk 0:00:18]} 41. Rxa6 {[%clk
0:00:06.5]} 41... Kc5 {[%clk 0:00:18.9]} 42. Ra5 {[%clk 0:00:05.1]} 42... Kb6
{[%clk 0:00:17]} 43. b4 {[%clk 0:00:05.5]} 43... d5 {[%clk 0:00:16.6]} 44. a4
{[%clk 0:00:05.5]} 44... bxa4 {[%clk 0:00:17.1]} 45. Rxa4 {[%clk 0:00:06.2]}
45... Rd8 {[%clk 0:00:13]} 46. Kf3 {[%clk 0:00:04.5]} 46... Kb5 {[%clk
0:00:12.8]} 47. Ra7 {[%clk 0:00:02.4]} 47... Kxb4 {[%clk 0:00:13]} 48. Rg7
{[%clk 0:00:03.3]} 48... Rd6 {[%clk 0:00:10.7]} 49. Ke2 {[%clk 0:00:02.9]} 49...
Kc3 {[%clk 0:00:11.2]} 50. h4 {[%clk 0:00:02.2]} 50... Rc6 {[%clk 0:00:10.1]}
51. Rd7 {[%clk 0:00:02.4]} 51... d4 {[%clk 0:00:10.6]} 52. Rd5 {[%clk
0:00:02.4]} 52... Re6+ {[%clk 0:00:10.9]} 53. Kd1 {[%clk 0:00:02.3]} 53... Kd3
{[%clk 0:00:11.3]} 54. Ra5 {[%clk 0:00:02.1]} 54... Rb6 {[%clk 0:00:11.4]} 55.
Ra3+ {[%clk 0:00:02.2]} 55... Ke4 {[%clk 0:00:11.9]} 56. Ke2 {[%clk 0:00:03.1]}
56... Rb2+ {[%clk 0:00:11.5]} 57. Ke1 {[%clk 0:00:03.7]} 57... d3 {[%clk
0:00:11.1]} 58. Ra4+ {[%clk 0:00:03.7]} 58... Kf3 {[%clk 0:00:11.4]} 59. Rd4
{[%clk 0:00:03.6]} 59... Re2+ {[%clk 0:00:08]} 60. Kf1 {[%clk 0:00:03.6]} 60...
Rxf2+ {[%clk 0:00:07.5]} 61. Kg1 {[%clk 0:00:04.2]} 61... Rd2 {[%clk 0:00:07.2]}
62. Rd6 {[%clk 0:00:03.5]} 62... Rd1+ {[%clk 0:00:06.8]} 63. Kh2 {[%clk
0:00:03.3]} 63... d2 {[%clk 0:00:07.7]} 64. Rxg6 {[%clk 0:00:03]} 64... Rh1+
{[%clk 0:00:07.5]} 65. Kxh1 {[%clk 0:00:03.6]} 65... d1=Q+ {[%clk 0:00:08.4]}
66. Kh2 {[%clk 0:00:04.2]} 66... Qd2+ {[%clk 0:00:07.9]} 67. Kh3 {[%clk
0:00:04.1]} 67... Qe1 {[%clk 0:00:07.9]} 68. h5 {[%clk 0:00:03.3]} 68... Qh1#
{[%clk 0:00:07.8]} 0-1

[Event "*** Titled Tuesday Blitz"]
[Site "Chess.com"]
[Date "2020.05.12"]
[Round "2"]
[White "InitiatingASC"]
[Black "Benjoneliere44"]
[Result "1-0"]
[WhiteElo "2311"]
[BlackElo "2548"]
[TimeControl "180+1"]
[EndTime "10:20:15 PDT"]
[Termination "InitiatingASC won by resignation"]

1. d4 {[%clk 0:03:00.9]} 1... d6 {[%clk 0:02:55.2]} 2. c4 {[%clk 0:03:00.7]}
2... e5 {[%clk 0:02:54.5]} 3. dxe5 {[%clk 0:02:59.6]} 3... dxe5 {[%clk
0:02:55.2]} 4. Qxd8+ {[%clk 0:02:59.4]} 4... Kxd8 {[%clk 0:02:56.1]} 5. Nf3
{[%clk 0:02:56.3]} 5... f6 {[%clk 0:02:55.9]} 6. b3 {[%clk 0:02:54.5]} 6... c6
{[%clk 0:02:53.7]} 7. Bb2 {[%clk 0:02:52.4]} 7... Be6 {[%clk 0:02:49.5]} 8. Nbd2
{[%clk 0:02:52]} 8... Kc7 {[%clk 0:02:49.6]} 9. e3 {[%clk 0:02:52.2]} 9... a5
{[%clk 0:02:48.2]} 10. a3 {[%clk 0:02:49.9]} 10... Na6 {[%clk 0:02:43.4]} 11.
Be2 {[%clk 0:02:43]} 11... Nc5 {[%clk 0:02:39.9]} 12. O-O {[%clk 0:02:42.8]}
12... Nh6 {[%clk 0:02:36.2]} 13. b4 {[%clk 0:02:36.9]} 13... Na4 {[%clk
0:02:35.9]} 14. Rfb1 {[%clk 0:02:30]} 14... Nxb2 {[%clk 0:02:35]} 15. Rxb2
{[%clk 0:02:29.9]} 15... axb4 {[%clk 0:02:35.4]} 16. Rab1 {[%clk 0:02:29]} 16...
Rxa3 {[%clk 0:02:33.8]} 17. Ne4 {[%clk 0:02:25.4]} 17... Be7 {[%clk 0:02:31.9]}
18. c5 {[%clk 0:02:25]} 18... Bf5 {[%clk 0:02:27.2]} 19. Rxb4 {[%clk 0:02:22.9]}
19... Ra7 {[%clk 0:02:16]} 20. Nfd2 {[%clk 0:02:15.9]} 20... Rd8 {[%clk
0:02:12.5]} 21. Bc4 {[%clk 0:02:06.9]} 21... Rxd2 {[%clk 0:01:59.7]} 22. Nxd2
{[%clk 0:01:53.9]} 22... Bxb1 {[%clk 0:01:59.8]} 23. Rxb1 {[%clk 0:01:51.1]}
23... Bxc5 {[%clk 0:02:00.2]} 24. Bd3 {[%clk 0:01:51.6]} 24... g6 {[%clk
0:01:53.8]} 25. Bc4 {[%clk 0:01:47.3]} 25... Nf5 {[%clk 0:01:52.6]} 26. g4
{[%clk 0:01:43.5]} 26... Ne7 {[%clk 0:01:47.5]} 27. h4 {[%clk 0:01:41.9]} 27...
f5 {[%clk 0:01:46]} 28. Nf3 {[%clk 0:01:27.9]} 28... Bd6 {[%clk 0:01:43.8]} 29.
Ng5 {[%clk 0:01:23]} 29... fxg4 {[%clk 0:01:41.4]} 30. Nxh7 {[%clk 0:01:23]}
30... Nf5 {[%clk 0:01:41.2]} 31. Be6 {[%clk 0:01:16.3]} 31... b5 {[%clk
0:01:37.8]} 32. Nf6 {[%clk 0:01:06.9]} 32... Nxh4 {[%clk 0:01:35.8]} 33. Ne8+
{[%clk 0:01:06.8]} 33... Kd8 {[%clk 0:01:32.2]} 34. Nxd6 {[%clk 0:01:06.6]}
34... Ra4 {[%clk 0:01:26.7]} 35. Nb7+ {[%clk 0:00:58.4]} 35... Ke7 {[%clk
0:01:24.8]} 36. Nc5 {[%clk 0:00:58.1]} 36... Ra7 {[%clk 0:01:15.6]} 37. Bxg4
{[%clk 0:00:57.7]} 37... Kd6 {[%clk 0:01:08.2]} 38. Ne4+ {[%clk 0:00:55.6]}
38... Kd5 {[%clk 0:01:08.6]} 39. f3 {[%clk 0:00:49.2]} 39... Rc7 {[%clk
0:00:57.9]} 40. Kf2 {[%clk 0:00:45.3]} 40... Nf5 {[%clk 0:00:57]} 41. Rd1+
{[%clk 0:00:35.2]} 41... Kc4 {[%clk 0:00:55.8]} 42. Rc1+ {[%clk 0:00:35.4]}
42... Kb4 {[%clk 0:00:54.3]} 43. Bxf5 {[%clk 0:00:33.2]} 43... gxf5 {[%clk
0:00:53.8]} 44. Nd6 {[%clk 0:00:33.8]} 44... f4 {[%clk 0:00:51.7]} 45. Ke2
{[%clk 0:00:30.3]} 45... c5 {[%clk 0:00:47]} 46. Rb1+ {[%clk 0:00:25.6]} 46...
Ka4 {[%clk 0:00:42]} 47. Nxb5 {[%clk 0:00:24.8]} 47... Rh7 {[%clk 0:00:40.7]}
48. Nc3+ {[%clk 0:00:23.8]} 48... Ka3 {[%clk 0:00:40.4]} 49. Kd3 {[%clk
0:00:22.6]} 49... fxe3 {[%clk 0:00:29.1]} 50. Kxe3 {[%clk 0:00:17.2]} 50... c4
{[%clk 0:00:28.7]} 51. Rb5 {[%clk 0:00:15.5]} 51... Rd7 {[%clk 0:00:23.9]} 52.
Rxe5 {[%clk 0:00:14.9]} 52... Rd3+ {[%clk 0:00:23.3]} 53. Ke4 {[%clk 0:00:14.3]}
53... Rxc3 {[%clk 0:00:24.2]} 54. f4 {[%clk 0:00:14.3]} 54... Rc1 {[%clk
0:00:22.7]} 55. f5 {[%clk 0:00:14]} 55... c3 {[%clk 0:00:19.8]} 56. Kd3 {[%clk
0:00:11.9]} 56... Kb4 {[%clk 0:00:18.1]} 57. f6 {[%clk 0:00:10.6]} 57... Rf1
{[%clk 0:00:16.7]} 58. Re6 {[%clk 0:00:09]} 58... Rf3+ {[%clk 0:00:12.9]} 59.
Kc2 {[%clk 0:00:08.5]} 59... Rf2+ {[%clk 0:00:12.6]} 60. Kc1 {[%clk 0:00:08.9]}
60... Kc4 {[%clk 0:00:10.4]} 61. Rc6+ {[%clk 0:00:07.9]} 61... Kd4 {[%clk
0:00:10.6]} 62. Kd1 {[%clk 0:00:07.5]} 62... Kd3 {[%clk 0:00:07.5]} 63. Ke1
{[%clk 0:00:06.1]} 63... Re2+ {[%clk 0:00:06.4]} 64. Kd1 {[%clk 0:00:06.2]}
64... Rf2 {[%clk 0:00:05.5]} 65. Rd6+ {[%clk 0:00:05.8]} 65... Ke3 {[%clk
0:00:04.1]} 66. Rc6 {[%clk 0:00:05.6]} 66... Kd4 {[%clk 0:00:04.2]} 67. Ke1
{[%clk 0:00:05.3]} 67... Rf5 {[%clk 0:00:03.6]} 68. Ke2 {[%clk 0:00:04.6]} 68...
Re5+ {[%clk 0:00:03.2]} 69. Kf3 {[%clk 0:00:03.7]} 69... Rf5+ {[%clk 0:00:04.1]}
70. Kg4 {[%clk 0:00:04.1]} 70... Rf1 {[%clk 0:00:04.3]} 71. Kg5 {[%clk
0:00:04.5]} 71... Kd3 {[%clk 0:00:04.5]} 72. Kg6 {[%clk 0:00:04.9]} 72... Rg1+
{[%clk 0:00:04.7]} 73. Kf7 {[%clk 0:00:05.1]} 73... c2 {[%clk 0:00:05.4]} 74.
Ke8 {[%clk 0:00:04.9]} 74... Re1+ {[%clk 0:00:05.3]} 75. Kd8 {[%clk 0:00:04.2]}
75... Re4 {[%clk 0:00:04.2]} 76. f7 {[%clk 0:00:03.8]} 76... Rd4+ {[%clk
0:00:05.1]} 77. Ke8 {[%clk 0:00:03.9]} 77... Rc4 {[%clk 0:00:05.2]} 78. Rxc4
{[%clk 0:00:02.7]} 78... Kxc4 {[%clk 0:00:06.1]} 79. f8=Q {[%clk 0:00:03.1]}
79... c1=Q {[%clk 0:00:07]} 80. Qf7+ {[%clk 0:00:03.8]} 80... Kc5 {[%clk
0:00:06.9]} 81. Qc7+ {[%clk 0:00:03.9]} 81... Kb4 {[%clk 0:00:06.9]} 82. Qxc1
{[%clk 0:00:04.8]} 82... Ka4 {[%clk 0:00:07.3]} 83. Qb2 {[%clk 0:00:04.5]} 83...
Ka5 {[%clk 0:00:07.1]} 84. Kd7 {[%clk 0:00:05]} 1-0

[Event "*** Titled Tuesday Blitz"]
[Site "Chess.com"]
[Date "2020.05.12"]
[Round "2"]
[White "Barbus89"]
[Black "vinniethepooh"]
[Result "1-0"]
[WhiteElo "2385"]
[BlackElo "2628"]
[TimeControl "180+1"]
[EndTime "10:20:20 PDT"]
[Termination "Barbus89 won by resignation"]

1. d4 {[%clk 0:03:00.9]} 1... Nf6 {[%clk 0:03:00]} 2. Nf3 {[%clk 0:03:01.3]}
2... d5 {[%clk 0:03:00]} 3. c4 {[%clk 0:03:00]} 3... e6 {[%clk 0:03:00.2]} 4. g3
{[%clk 0:02:59.4]} 4... dxc4 {[%clk 0:02:59.8]} 5. Bg2 {[%clk 0:02:59.4]} 5...
a6 {[%clk 0:03:00.2]} 6. Ne5 {[%clk 0:02:58.5]} 6... Bb4+ {[%clk 0:02:57.5]} 7.
Nc3 {[%clk 0:02:57]} 7... Nd5 {[%clk 0:02:51]} 8. Bd2 {[%clk 0:02:32.3]} 8...
Nb6 {[%clk 0:02:47.6]} 9. e3 {[%clk 0:02:02.1]} 9... O-O {[%clk 0:02:44]} 10.
O-O {[%clk 0:02:00.4]} 10... f6 {[%clk 0:02:42.6]} 11. Nf3 {[%clk 0:01:57.7]}
11... Nc6 {[%clk 0:02:40]} 12. Na4 {[%clk 0:01:48.2]} 12... Nxa4 {[%clk
0:02:10.7]} 13. Qxa4 {[%clk 0:01:45.4]} 13... b5 {[%clk 0:02:06.3]} 14. Qd1
{[%clk 0:01:41.5]} 14... Bb7 {[%clk 0:02:00.4]} 15. Ng5 {[%clk 0:01:31.8]} 15...
fxg5 {[%clk 0:01:30.1]} 16. Bxb4 {[%clk 0:01:26.6]} 16... Nxb4 {[%clk
0:01:27.4]} 17. Bxb7 {[%clk 0:01:27.5]} 17... Rb8 {[%clk 0:01:27.8]} 18. Be4
{[%clk 0:01:25.3]} 18... Qf6 {[%clk 0:01:19.9]} 19. b3 {[%clk 0:01:13]} 19... c3
{[%clk 0:00:51.5]} 20. Qc1 {[%clk 0:01:07.6]} 20... Nd5 {[%clk 0:00:35.3]} 21.
Bxd5 {[%clk 0:01:07.3]} 21... exd5 {[%clk 0:00:36.2]} 22. Qxc3 {[%clk
0:01:07.8]} 22... Rfc8 {[%clk 0:00:33.2]} 23. Rfc1 {[%clk 0:00:50.8]} 23... Qd6
{[%clk 0:00:31]} 24. Qc6 {[%clk 0:00:49.8]} 24... Rb6 {[%clk 0:00:28.6]} 25.
Qxd6 {[%clk 0:00:43.9]} 25... Rxd6 {[%clk 0:00:29.5]} 26. a4 {[%clk 0:00:44.3]}
26... Rb6 {[%clk 0:00:17]} 27. Rc5 {[%clk 0:00:41.7]} 27... c6 {[%clk
0:00:15.6]} 28. Rac1 {[%clk 0:00:38.3]} 28... Kf7 {[%clk 0:00:10.4]} 29. a5
{[%clk 0:00:35]} 29... Rb7 {[%clk 0:00:09.1]} 30. Rxc6 {[%clk 0:00:35.4]} 30...
Rxc6 {[%clk 0:00:10]} 31. Rxc6 {[%clk 0:00:34.8]} 31... b4 {[%clk 0:00:08]} 32.
Rxa6 {[%clk 0:00:33.8]} 32... Rb5 {[%clk 0:00:06.8]} 33. Ra7+ {[%clk 0:00:31.2]}
33... Kf6 {[%clk 0:00:06.5]} 34. a6 {[%clk 0:00:31.5]} 34... Ra5 {[%clk
0:00:04.8]} 35. h3 {[%clk 0:00:29]} 35... h5 {[%clk 0:00:04.5]} 36. Kg2 {[%clk
0:00:28.5]} 36... Ra3 {[%clk 0:00:04.3]} 37. Rb7 {[%clk 0:00:20.6]} 37... Rxb3
{[%clk 0:00:04.5]} 38. a7 {[%clk 0:00:17.2]} 38... Ra3 {[%clk 0:00:04.9]} 39.
Rxb4 {[%clk 0:00:16.6]} 39... Rxa7 {[%clk 0:00:05.2]} 40. Rb6+ {[%clk
0:00:16.6]} 40... Kf5 {[%clk 0:00:04.7]} 41. Rd6 {[%clk 0:00:16.3]} 41... Ra5
{[%clk 0:00:04.2]} 42. Kf3 {[%clk 0:00:15.6]} 42... g4+ {[%clk 0:00:04.5]} 43.
hxg4+ {[%clk 0:00:15.5]} 43... hxg4+ {[%clk 0:00:05.4]} 44. Kg2 {[%clk
0:00:16.4]} 44... g5 {[%clk 0:00:05.7]} 45. Kg1 {[%clk 0:00:15.3]} 45... Rb5
{[%clk 0:00:04.8]} 46. Kg2 {[%clk 0:00:14.4]} 46... Ra5 {[%clk 0:00:05.1]} 47.
Rd8 {[%clk 0:00:13.7]} 47... Rb5 {[%clk 0:00:05.1]} 48. Re8 {[%clk 0:00:13.3]}
48... Ra5 {[%clk 0:00:04.4]} 49. Re5+ {[%clk 0:00:13.5]} 49... Kf6 {[%clk
0:00:04.9]} 50. Kf1 {[%clk 0:00:13.5]} 50... Ra1+ {[%clk 0:00:04.3]} 51. Ke2
{[%clk 0:00:12.9]} 51... Ra2+ {[%clk 0:00:04.4]} 52. Ke1 {[%clk 0:00:13.5]}
52... Ra5 {[%clk 0:00:04.4]} 53. Kd2 {[%clk 0:00:09.8]} 53... Ra2+ {[%clk
0:00:04.4]} 54. Kd3 {[%clk 0:00:10.1]} 54... Rxf2 {[%clk 0:00:04.7]} 55. Rxd5
{[%clk 0:00:10.4]} 55... Rf3 {[%clk 0:00:04.9]} 56. Rd6+ {[%clk 0:00:08.1]}
56... Kf5 {[%clk 0:00:04.6]} 57. Rd5+ {[%clk 0:00:07.4]} 57... Kf6 {[%clk
0:00:04.7]} 58. Ke4 {[%clk 0:00:07.2]} 58... Rxg3 {[%clk 0:00:04.7]} 59. Rd6+
{[%clk 0:00:07.7]} 59... Ke7 {[%clk 0:00:05]} 60. Rg6 {[%clk 0:00:07.3]} 60...
Rg1 {[%clk 0:00:03.9]} 61. Rxg5 {[%clk 0:00:07.3]} 61... Kf6 {[%clk 0:00:04.5]}
62. Rg8 {[%clk 0:00:06.6]} 62... Kf7 {[%clk 0:00:04.7]} 63. Rg5 {[%clk
0:00:06.6]} 63... Kf6 {[%clk 0:00:04.9]} 64. Rf5+ {[%clk 0:00:04.7]} 64... Ke6
{[%clk 0:00:05.3]} 65. Re5+ {[%clk 0:00:04.1]} 65... Kd6 {[%clk 0:00:05.2]} 66.
Kf4 {[%clk 0:00:04.9]} 66... g3 {[%clk 0:00:03.7]} 67. Kf3 {[%clk 0:00:05.1]}
67... g2 {[%clk 0:00:02.8]} 68. Kf2 {[%clk 0:00:05.4]} 68... Rd1 {[%clk
0:00:02]} 69. Kxg2 {[%clk 0:00:05.2]} 69... Rd2+ {[%clk 0:00:02.6]} 70. Kf3
{[%clk 0:00:05.4]} 70... Rd1 {[%clk 0:00:01.3]} 71. Ke4 {[%clk 0:00:05.8]} 71...
Ra1 {[%clk 0:00:02.2]} 72. Rd5+ {[%clk 0:00:05.8]} 72... Ke6 {[%clk 0:00:02.3]}
73. Rh5 {[%clk 0:00:06.7]} 73... Kd6 {[%clk 0:00:03.1]} 74. Rh6+ {[%clk
0:00:06.8]} 74... Ke7 {[%clk 0:00:03.8]} 75. Ke5 {[%clk 0:00:06.5]} 75... Ra5+
{[%clk 0:00:04.1]} 76. d5 {[%clk 0:00:06.5]} 76... Ra4 {[%clk 0:00:05]} 77. e4
{[%clk 0:00:06.9]} 77... Kf7 {[%clk 0:00:04.3]} 78. Rh7+ {[%clk 0:00:07.3]}
78... Kg6 {[%clk 0:00:04.7]} 79. Rb7 {[%clk 0:00:07.6]} 79... Rb4 {[%clk
0:00:04.3]} 80. Rxb4 {[%clk 0:00:06.6]} 1-0

[Event "*** Titled Tuesday Blitz"]
[Site "Chess.com"]
[Date "2020.05.12"]
[Round "2"]
[White "aquiles88"]
[Black "bugsbunny444"]
[Result "0-1"]
[WhiteElo "2222"]
[BlackElo "2451"]
[TimeControl "180+1"]
[EndTime "10:20:21 PDT"]
[Termination "bugsbunny444 won by resignation"]

1. e4 {[%clk 0:02:59.2]} 1... c5 {[%clk 0:02:59.8]} 2. Nf3 {[%clk 0:02:58.8]}
2... e6 {[%clk 0:02:59.8]} 3. d4 {[%clk 0:02:58.6]} 3... cxd4 {[%clk 0:02:59.3]}
4. Nxd4 {[%clk 0:02:59.5]} 4... a6 {[%clk 0:02:59.9]} 5. c4 {[%clk 0:02:58.9]}
5... Nf6 {[%clk 0:02:59.6]} 6. Bd3 {[%clk 0:02:56.3]} 6... Nc6 {[%clk 0:02:59]}
7. Nc2 {[%clk 0:02:55.8]} 7... Qc7 {[%clk 0:02:46.4]} 8. O-O {[%clk 0:02:54.5]}
8... Bc5 {[%clk 0:02:43.3]} 9. Be3 {[%clk 0:02:52.1]} 9... b6 {[%clk 0:02:21.3]}
10. Nc3 {[%clk 0:02:47.5]} 10... Bb7 {[%clk 0:02:16.4]} 11. Qe2 {[%clk
0:02:43.9]} 11... O-O {[%clk 0:01:58.1]} 12. Rfd1 {[%clk 0:02:42.5]} 12... Ne5
{[%clk 0:01:55.1]} 13. f3 {[%clk 0:02:23.7]} 13... Rfe8 {[%clk 0:01:27.8]} 14.
Rac1 {[%clk 0:02:21.9]} 14... d5 {[%clk 0:01:24.2]} 15. cxd5 {[%clk 0:02:18.7]}
15... exd5 {[%clk 0:01:24.5]} 16. Nxd5 {[%clk 0:02:08.1]} 16... Nxd5 {[%clk
0:01:09.9]} 17. exd5 {[%clk 0:02:09]} 17... Nxd3 {[%clk 0:01:02.1]} 18. Qxd3
{[%clk 0:02:06.3]} 18... Rad8 {[%clk 0:00:13.5]} 19. Nd4 {[%clk 0:01:53.2]}
19... Qe5 {[%clk 0:00:11.1]} 20. Bf2 {[%clk 0:01:42.7]} 20... Qxd5 {[%clk
0:00:10.8]} 21. Qb3 {[%clk 0:01:28.6]} 21... h6 {[%clk 0:00:06.2]} 22. Qxd5
{[%clk 0:01:27.1]} 22... Bxd5 {[%clk 0:00:06.2]} 23. Nb3 {[%clk 0:01:27]} 23...
Bxf2+ {[%clk 0:00:05.1]} 24. Kxf2 {[%clk 0:01:26.9]} 24... Bxb3 {[%clk
0:00:03.6]} 25. axb3 {[%clk 0:01:26.8]} 25... Kf8 {[%clk 0:00:03.6]} 26. Rxd8
{[%clk 0:01:16.8]} 26... Rxd8 {[%clk 0:00:04.5]} 27. Rc2 {[%clk 0:01:17.3]}
27... Rd5 {[%clk 0:00:04.2]} 28. Ke2 {[%clk 0:01:13.4]} 28... Rb5 {[%clk
0:00:04.1]} 29. Rc3 {[%clk 0:01:13.2]} 29... Re5+ {[%clk 0:00:03]} 30. Kf2
{[%clk 0:01:12]} 30... Rb5 {[%clk 0:00:02.9]} 31. h4 {[%clk 0:01:08.3]} 31...
Rb4 {[%clk 0:00:02.9]} 32. g3 {[%clk 0:01:07.3]} 32... a5 {[%clk 0:00:02.3]} 33.
Ke3 {[%clk 0:01:06.1]} 33... g6 {[%clk 0:00:02.6]} 34. Rc8+ {[%clk 0:01:03.1]}
34... Kg7 {[%clk 0:00:02.8]} 35. Rc3 {[%clk 0:01:04]} 35... g5 {[%clk
0:00:01.9]} 36. h5 {[%clk 0:01:03]} 36... f5 {[%clk 0:00:02.3]} 37. Rc7+ {[%clk
0:01:02]} 37... Kf6 {[%clk 0:00:02.7]} 38. Rc6+ {[%clk 0:01:02.1]} 38... Ke5
{[%clk 0:00:03.2]} 39. f4+ {[%clk 0:00:56.5]} 39... gxf4+ {[%clk 0:00:03.1]} 40.
gxf4+ {[%clk 0:00:56.2]} 40... Rxf4 {[%clk 0:00:02.9]} 41. Rxh6 {[%clk
0:00:54.6]} 41... Rb4 {[%clk 0:00:01.4]} 42. Rh8 {[%clk 0:00:49.6]} 42... Rxb3+
{[%clk 0:00:01.8]} 43. Kd2 {[%clk 0:00:49.9]} 43... Rxb2+ {[%clk 0:00:02.7]} 44.
Kc3 {[%clk 0:00:50.2]} 44... Rb4 {[%clk 0:00:03.6]} 45. h6 {[%clk 0:00:47.5]}
45... Kf6 {[%clk 0:00:04.2]} 46. Rf8+ {[%clk 0:00:44.9]} 46... Kg6 {[%clk
0:00:04.4]} 47. h7 {[%clk 0:00:45]} 47... Kxh7 {[%clk 0:00:04.5]} 48. Rxf5
{[%clk 0:00:45.2]} 48... Kg6 {[%clk 0:00:05.3]} 49. Rf1 {[%clk 0:00:44]} 49...
Kg5 {[%clk 0:00:05.3]} 50. Rf8 {[%clk 0:00:43.2]} 50... Rf4 {[%clk 0:00:04.8]}
51. Rb8 {[%clk 0:00:40.7]} 51... Rb4 {[%clk 0:00:04.4]} 52. Rf8 {[%clk
0:00:40.7]} 52... Rb5 {[%clk 0:00:03.6]} 53. Kc4 {[%clk 0:00:39.3]} 53... Rb4+
{[%clk 0:00:03.5]} 54. Kd5 {[%clk 0:00:38.9]} 54... Kg6 {[%clk 0:00:03.8]} 55.
Kc6 {[%clk 0:00:38.1]} 55... a4 {[%clk 0:00:03.6]} 56. Rg8+ {[%clk 0:00:29.6]}
56... Kf6 {[%clk 0:00:03.6]} 57. Re8 {[%clk 0:00:29.2]} 57... b5 {[%clk
0:00:02.9]} 58. Kc5 {[%clk 0:00:28.1]} 58... Rb3 {[%clk 0:00:03.8]} 59. Re2
{[%clk 0:00:21]} 59... Kf5 {[%clk 0:00:03.9]} 60. Kd4 {[%clk 0:00:19.7]} 60...
Kf4 {[%clk 0:00:03.4]} 61. Rf2+ {[%clk 0:00:19.3]} 61... Kg3 {[%clk 0:00:03.9]}
62. Rf1 {[%clk 0:00:18.5]} 62... a3 {[%clk 0:00:04.2]} 63. Rg1+ {[%clk
0:00:11.9]} 63... Kf2 {[%clk 0:00:04]} 64. Ra1 {[%clk 0:00:12.3]} 64... b4
{[%clk 0:00:04.6]} 65. Kc4 {[%clk 0:00:12.1]} 65... Rb2 {[%clk 0:00:05.1]} 66.
Kd3 {[%clk 0:00:11.6]} 66... a2 {[%clk 0:00:05.1]} 67. Rh1 {[%clk 0:00:09.5]}
67... Kg2 {[%clk 0:00:04]} 68. Ra1 {[%clk 0:00:08.2]} 68... b3 {[%clk
0:00:04.3]} 69. Kc3 {[%clk 0:00:08.7]} 69... Rb1 {[%clk 0:00:04.4]} 70. Rxa2+
{[%clk 0:00:06.9]} 70... bxa2 {[%clk 0:00:04.6]} 0-1